Workbook

Sheet Data
A1: Shop Date | B1: Check in Date | C1: Check in Day of Week | D1: Length of Stay | E1: Number of Rooms | F1: Your Priceline Rate* | G1: Offer Price | H1: Declined Revenue | I1: Reason** | J1: Booked by Others | K1: Posted Rate | L1: Discount | M1: DBA
A2: 2007-08-31 | B2: 2007-08-31 | C2: Fri | D2: 1 | E2: 1 | F2: 120 | G2: 102 | H2: 102 | I2: HI | J2: Y | K2: 254 | L2: =G2/K2 -> 0.4015748031 | M2: =B2-A2 -> 0 | AA2: =MIN(B:B) -> 39325
A3: 2007-09-01 | B3: 2007-09-01 | C3: Sat | D3: 1 | E3: 1 | F3: 120 | G3: 106 | H3: 106 | I3: HI | J3: Y | K3: 254 | L3: =G3/K3 -> 0.4173228346 | M3: 0 | AA3: =MAX(B:B) -> 39632
A4: 2007-09-02 | B4: 2007-09-02 | C4: Sun | D4: 1 | E4: 1 | F4: 117 | G4: 103 | H4: 103 | I4: HI | J4: Y | K4: 254 | L4: 0.405511811 | M4: 0
A5: 2007-09-02 | B5: 2007-09-02 | C5: Sun | D5: 1 | E5: 1 | F5: 117 | G5: 100 | H5: 100 | I5: HI | K5: 254 | L5: 0.3937007874 | M5: 0
A6: 2007-09-03 | B6: 2007-09-03 | C6: Mon | D6: 2 | E6: 1 | F6: 118 | G6: 107 | H6: 214 | I6: HI | J6: Y | K6: 254 | L6: 0.4212598425 | M6: 0
A7: 2007-09-04 | B7: 2007-09-04 | C7: Tue | D7: 2 | E7: 1 | F7: 120 | G7: 99 | H7: 198 | I7: HI | K7: 254 | L7: 0.3897637795 | M7: 0
A8: 2007-09-05 | B8: 2007-09-05 | C8: Wed | D8: 1 | E8: 1 | F8: 308 | G8: 103 | H8: 103 | I8: HI | J8: Y | K8: 308 | L8: 0.3344155844 | M8: 0
A9: 2007-09-07 | B9: 2007-09-07 | C9: Fri | D9: 2 | E9: 1 | F9: 120 | G9: 103 | H9: 206 | I9: HI | J9: Y | K9: 254 | L9: 0.405511811 | M9: 0
A10: 2007-09-07 | B10: 2007-09-07 | C10: Fri | D10: 2 | E10: 1 | F10: 120 | G10: 103 | H10: 206 | I10: HI | J10: Y | K10: 254 | L10: 0.405511811 | M10: 0
A11: 2007-09-07 | B11: 2007-09-07 | C11: Fri | D11: 2 | E11: 1 | F11: 120 | G11: 100 | H11: 200 | I11: HI | K11: 254 | L11: 0.3937007874 | M11: 0
A12: 2007-09-07 | B12: 2007-09-07 | C12: Fri | D12: 1 | E12: 1 | F12: 120 | G12: 103 | H12: 103 | I12: HI | J12: Y | K12: 254 | L12: 0.405511811 | M12: 0
A13: 2007-09-07 | B13: 2007-09-07 | C13: Fri | D13: 1 | E13: 1 | F13: 120 | G13: 103 | H13: 103 | I13: HI | J13: Y | K13: 254 | L13: 0.405511811 | M13: 0
A14: 2007-09-07 | B14: 2007-09-07 | C14: Fri | D14: 2 | E14: 1 | F14: 120 | G14: 101 | H14: 202 | I14: HI | J14: Y | K14: 254 | L14: 0.3976377953 | M14: 0
A15: 2007-09-07 | B15: 2007-09-07 | C15: Fri | D15: 1 | E15: 1 | F15: 120 | G15: 99 | H15: 99 | I15: HI | K15: 254 | L15: 0.3897637795 | M15: 0
A16: 2007-09-07 | B16: 2007-09-07 | C16: Fri | D16: 4 | E16: 1 | F16: 120 | G16: 99 | H16: 396 | I16: HI | K16: 254 | L16: 0.3897637795 | M16: 0
A17: 2007-09-07 | B17: 2007-09-07 | C17: Fri | D17: 4 | E17: 1 | F17: 120 | G17: 99 | H17: 396 | I17: HI | K17: 254 | L17: 0.3897637795 | M17: 0
A18: 2007-09-07 | B18: 2007-09-07 | C18: Fri | D18: 1 | E18: 1 | F18: 120 | G18: 99 | H18: 99 | I18: HI | K18: 254 | L18: 0.3897637795 | M18: 0
A19: 2007-09-07 | B19: 2007-09-07 | C19: Fri | D19: 7 | E19: 1 | F19: 253 | G19: 99 | H19: 693 | I19: HI | K19: 254 | L19: 0.3897637795 | M19: 0
A20: 2007-09-08 | B20: 2007-09-08 | C20: Sat | D20: 1 | E20: 1 | F20: 411 | G20: 103 | H20: 103 | I20: HI | J20: Y | K20: 411 | L20: 0.2506082725 | M20: 0
A21: 2007-09-08 | B21: 2007-09-08 | C21: Sat | D21: 1 | E21: 1 | F21: 411 | G21: 98 | H21: 98 | I21: HI | J21: Y | K21: 411 | L21: 0.2384428224 | M21: 0
A22: 2007-09-09 | B22: 2007-09-09 | C22: Sun | D22: 5 | E22: 1 | F22: 284 | G22: 116 | H22: 580 | I22: HI | J22: Y | K22: 284 | L22: 0.4084507042 | M22: 0
A23: 2007-09-09 | B23: 2007-09-09 | C23: Sun | D23: 9 | E23: 1 | F23: 371 | G23: 116 | H23: 1044 | I23: HI | K23: 371 | L23: 0.3126684636 | M23: 0
A24: 2007-09-09 | B24: 2007-09-09 | C24: Sun | D24: 3 | E24: 1 | F24: 284 | G24: 112 | H24: 336 | I24: HI | K24: 284 | L24: 0.3943661972 | M24: 0
A25: 2007-09-09 | B25: 2007-09-09 | C25: Sun | D25: 1 | E25: 1 | F25: 120 | G25: 107 | H25: 107 | I25: HI | K25: 254 | L25: 0.4212598425 | M25: 0
A26: 2007-09-10 | B26: 2007-09-10 | C26: Mon | D26: 2 | E26: 1 | F26: 190 | G26: 129 | H26: 258 | I26: HI | K26: 254 | L26: 0.5078740157 | M26: 0
A27: 2007-09-10 | B27: 2007-09-10 | C27: Mon | D27: 2 | E27: 1 | F27: 190 | G27: 125 | H27: 250 | I27: HI | K27: 254 | L27: 0.4921259843 | M27: 0
A28: 2007-09-10 | B28: 2007-09-10 | C28: Mon | D28: 2 | E28: 1 | F28: 190 | G28: 121 | H28: 242 | I28: HI | K28: 254 | L28: 0.4763779528 | M28: 0
A29: 2007-09-10 | B29: 2007-09-10 | C29: Mon | D29: 2 | E29: 1 | F29: 198 | G29: 116 | H29: 232 | I29: HI | J29: Y | K29: 254 | L29: 0.4566929134 | M29: 0
A30: 2007-09-10 | B30: 2007-09-10 | C30: Mon | D30: 1 | E30: 1 | F30: 120 | G30: 107 | H30: 107 | I30: HI | J30: Y | K30: 254 | L30: 0.4212598425 | M30: 0
A31: 2007-09-10 | B31: 2007-09-10 | C31: Mon | D31: 1 | E31: 1 | F31: 120 | G31: 100 | H31: 100 | I31: HI | K31: 254 | L31: 0.3937007874 | M31: 0
A32: 2007-09-11 | B32: 2007-09-11 | C32: Tue | D32: 1 | E32: 1 | F32: 250 | G32: 120 | H32: 120 | I32: HI | J32: Y | K32: 254 | L32: 0.4724409449 | M32: 0
A33: 2007-09-11 | B33: 2007-09-11 | C33: Tue | D33: 2 | E33: 1 | F33: 198 | G33: 109 | H33: 218 | I33: HI | J33: Y | K33: 254 | L33: 0.4291338583 | M33: 0
A34: 2007-09-11 | B34: 2007-09-11 | C34: Tue | D34: 1 | E34: 1 | F34: 236 | G34: 107 | H34: 107 | I34: HI | J34: Y | K34: 254 | L34: 0.4212598425 | M34: 0
A35: 2007-09-11 | B35: 2007-09-11 | C35: Tue | D35: 1 | E35: 1 | F35: 250 | G35: 107 | H35: 107 | I35: HI | K35: 254 | L35: 0.4212598425 | M35: 0
A36: 2007-09-12 | B36: 2007-09-12 | C36: Wed | D36: 1 | E36: 1 | F36: 145 | G36: 122 | H36: 122 | I36: HI | J36: Y | K36: 254 | L36: 0.4803149606 | M36: 0
A37: 2007-09-12 | B37: 2007-09-12 | C37: Wed | D37: 1 | E37: 1 | F37: 145 | G37: 116 | H37: 116 | I37: HI | K37: 254 | L37: 0.4566929134 | M37: 0
A38: 2007-09-12 | B38: 2007-09-12 | C38: Wed | D38: 1 | E38: 1 | F38: 145 | G38: 112 | H38: 112 | I38: HI | J38: Y | K38: 254 | L38: 0.4409448819 | M38: 0
A39: 2007-09-12 | B39: 2007-09-12 | C39: Wed | D39: 1 | E39: 1 | F39: 145 | G39: 112 | H39: 112 | I39: HI | K39: 254 | L39: 0.4409448819 | M39: 0
A40: 2007-09-12 | B40: 2007-09-12 | C40: Wed | D40: 1 | E40: 1 | F40: 145 | G40: 107 | H40: 107 | I40: HI | K40: 254 | L40: 0.4212598425 | M40: 0
A41: 2007-09-12 | B41: 2007-09-12 | C41: Wed | D41: 1 | E41: 1 | F41: 145 | G41: 103 | H41: 103 | I41: HI | J41: Y | K41: 254 | L41: 0.405511811 | M41: 0
A42: 2007-09-13 | B42: 2007-09-13 | C42: Thu | D42: 1 | E42: 1 | F42: 121 | G42: 103 | H42: 103 | I42: HI | K42: 254 | L42: 0.405511811 | M42: 0
A43: 2007-09-13 | B43: 2007-09-13 | C43: Thu | D43: 1 | E43: 1 | F43: 121 | G43: 103 | H43: 103 | I43: HI | K43: 254 | L43: 0.405511811 | M43: 0
A44: 2007-09-14 | B44: 2007-09-14 | C44: Fri | D44: 1 | E44: 2 | F44: 165 | G44: 122 | H44: 122 | I44: HI | J44: Y | K44: 254 | L44: 0.4803149606 | M44: 0
A45: 2007-09-14 | B45: 2007-09-14 | C45: Fri | D45: 1 | E45: 1 | F45: 197 | G45: 107 | H45: 107 | I45: HI | J45: Y | K45: 254 | L45: 0.4212598425 | M45: 0
A46: 2007-09-14 | B46: 2007-09-14 | C46: Fri | D46: 3 | E46: 1 | F46: 120 | G46: 105 | H46: 315 | I46: HI | J46: Y | K46: 254 | L46: 0.4133858268 | M46: 0
A47: 2007-09-14 | B47: 2007-09-14 | C47: Fri | D47: 1 | E47: 1 | F47: 165 | G47: 99 | H47: 99 | I47: HI | J47: Y | K47: 254 | L47: 0.3897637795 | M47: 0
A48: 2007-09-18 | B48: 2007-09-18 | C48: Tue | D48: 1 | E48: 1 | G48: 151 | H48: 151 | I48: NR | K48: 254 | L48: 0.594488189 | M48: 0
A49: 2007-09-18 | B49: 2007-09-18 | C49: Tue | D49: 1 | E49: 1 | G49: 129 | H49: 129 | I49: NR | K49: 254 | L49: 0.5078740157 | M49: 0
A50: 2007-09-18 | B50: 2007-09-18 | C50: Tue | D50: 3 | E50: 1 | G50: 127 | H50: 381 | I50: NR | K50: 254 | L50: 0.5 | M50: 0
A51: 2007-09-18 | B51: 2007-09-18 | C51: Tue | D51: 3 | E51: 1 | G51: 124 | H51: 372 | I51: NR | K51: 254 | L51: 0.4881889764 | M51: 0
A52: 2007-09-18 | B52: 2007-09-18 | C52: Tue | D52: 3 | E52: 1 | G52: 123 | H52: 369 | I52: NR | K52: 254 | L52: 0.4842519685 | M52: 0
A53: 2007-09-15 | B53: 2007-09-15 | C53: Sat | D53: 3 | E53: 1 | G53: 162 | H53: 486 | I53: NR | K53: 254 | L53: 0.6377952756 | M53: 0
A54: 2007-09-15 | B54: 2007-09-15 | C54: Sat | D54: 1 | E54: 1 | F54: 280 | G54: 103 | H54: 103 | I54: HI | K54: 280 | L54: 0.3678571429 | M54: 0
A55: 2007-09-15 | B55: 2007-09-15 | C55: Sat | D55: 1 | E55: 1 | F55: 197 | G55: 99 | H55: 99 | I55: HI | J55: Y | K55: 254 | L55: 0.3897637795 | M55: 0
A56: 2007-09-16 | B56: 2007-09-16 | C56: Sun | D56: 5 | E56: 2 | G56: 143 | H56: 715 | I56: NR | K56: 254 | L56: 0.562992126 | M56: 0
A57: 2007-09-16 | B57: 2007-09-16 | C57: Sun | D57: 5 | E57: 2 | G57: 134 | H57: 670 | I57: NR | K57: 254 | L57: 0.5275590551 | M57: 0
A58: 2007-09-16 | B58: 2007-09-16 | C58: Sun | D58: 2 | E58: 1 | G58: 134 | H58: 268 | I58: NR | K58: 254 | L58: 0.5275590551 | M58: 0
A59: 2007-09-16 | B59: 2007-09-16 | C59: Sun | D59: 3 | E59: 1 | G59: 125 | H59: 375 | I59: NR | K59: 254 | L59: 0.4921259843 | M59: 0
A60: 2007-09-16 | B60: 2007-09-16 | C60: Sun | D60: 5 | E60: 2 | G60: 116 | H60: 580 | I60: NR | K60: 254 | L60: 0.4566929134 | M60: 0
A61: 2007-09-16 | B61: 2007-09-16 | C61: Sun | D61: 1 | E61: 1 | F61: 254 | G61: 115 | H61: 115 | I61: HI | J61: Y | K61: 254 | L61: 0.4527559055 | M61: 0
A62: 2007-09-16 | B62: 2007-09-16 | C62: Sun | D62: 1 | E62: 3 | F62: 254 | G62: 99 | H62: 99 | I62: HI | J62: Y | K62: 254 | L62: 0.3897637795 | M62: 0
A63: 2007-09-16 | B63: 2007-09-16 | C63: Sun | D63: 1 | E63: 1 | F63: 254 | G63: 99 | H63: 99 | I63: HI | J63: Y | K63: 254 | L63: 0.3897637795 | M63: 0
A64: 2007-09-17 | B64: 2007-09-17 | C64: Mon | D64: 1 | E64: 1 | G64: 270 | H64: 270 | I64: NR | J64: Y | K64: 291.5 | L64: 0.9262435678 | M64: 0
A65: 2007-09-17 | B65: 2007-09-17 | C65: Mon | D65: 1 | E65: 1 | G65: 253 | H65: 253 | I65: NR | K65: 272.8 | L65: 0.9274193548 | M65: 0
A66: 2007-09-17 | B66: 2007-09-17 | C66: Mon | D66: 1 | E66: 1 | G66: 231 | H66: 231 | I66: NR | K66: 254 | L66: 0.9094488189 | M66: =B66-A66 -> 0
A67: 2007-09-17 | B67: 2007-09-17 | C67: Mon | D67: 1 | E67: 1 | G67: 209 | H67: 209 | I67: NR | K67: 254 | L67: =G67/K67 -> 0.8228346457 | M67: 0
A68: 2007-09-17 | B68: 2007-09-17 | C68: Mon | D68: 2 | E68: 1 | G68: 191 | H68: 382 | I68: NR | K68: 254 | L68: 0.7519685039 | M68: 0
A69: 2007-09-17 | B69: 2007-09-17 | C69: Mon | D69: 1 | E69: 1 | G69: 187 | H69: 187 | I69: NR | K69: 254 | L69: 0.7362204724 | M69: 0
A70: 2007-09-17 | B70: 2007-09-17 | C70: Mon | D70: 1 | E70: 1 | G70: 182 | H70: 182 | I70: NR | K70: 254 | L70: 0.7165354331 | M70: 0
A71: 2007-09-17 | B71: 2007-09-17 | C71: Mon | D71: 1 | E71: 1 | G71: 181 | H71: 181 | I71: NR | K71: 254 | L71: 0.7125984252 | M71: 0
A72: 2007-09-17 | B72: 2007-09-17 | C72: Mon | D72: 1 | E72: 1 | G72: 151 | H72: 151 | I72: NR | K72: 254 | L72: 0.594488189 | M72: 0
A73: 2007-09-17 | B73: 2007-09-17 | C73: Mon | D73: 4 | E73: 1 | G73: 151 | H73: 604 | I73: NR | K73: 254 | L73: 0.594488189 | M73: 0
A74: 2007-09-17 | B74: 2007-09-17 | C74: Mon | D74: 1 | E74: 1 | G74: 149 | H74: 149 | I74: NR | K74: 254 | L74: 0.5866141732 | M74: 0
A75: 2007-09-17 | B75: 2007-09-17 | C75: Mon | D75: 3 | E75: 1 | G75: 145 | H75: 435 | I75: NR | K75: 254 | L75: 0.5708661417 | M75: 0
A76: 2007-09-17 | B76: 2007-09-17 | C76: Mon | D76: 1 | E76: 1 | G76: 144 | H76: 144 | I76: NR | J76: Y | K76: 254 | L76: 0.5669291339 | M76: 0
A77: 2007-09-17 | B77: 2007-09-17 | C77: Mon | D77: 4 | E77: 1 | G77: 143 | H77: 572 | I77: NR | K77: 254 | L77: 0.562992126 | M77: 0
A78: 2007-09-17 | B78: 2007-09-17 | C78: Mon | D78: 1 | E78: 1 | G78: 143 | H78: 143 | I78: NR | K78: 254 | L78: 0.562992126 | M78: 0
A79: 2007-09-17 | B79: 2007-09-17 | C79: Mon | D79: 1 | E79: 1 | G79: 143 | H79: 143 | I79: NR | K79: 254 | L79: 0.562992126 | M79: 0
A80: 2007-09-17 | B80: 2007-09-17 | C80: Mon | D80: 3 | E80: 1 | G80: 143 | H80: 429 | I80: NR | K80: 254 | L80: 0.562992126 | M80: 0
A81: 2007-09-17 | B81: 2007-09-17 | C81: Mon | D81: 1 | E81: 1 | G81: 134 | H81: 134 | I81: NR | K81: 254 | L81: 0.5275590551 | M81: 0
A82: 2007-09-17 | B82: 2007-09-17 | C82: Mon | D82: 1 | E82: 1 | G82: 134 | H82: 134 | I82: NR | K82: 254 | L82: 0.5275590551 | M82: 0
A83: 2007-09-17 | B83: 2007-09-17 | C83: Mon | D83: 3 | E83: 1 | G83: 130 | H83: 390 | I83: NR | K83: 254 | L83: 0.5118110236 | M83: 0
A84: 2007-09-17 | B84: 2007-09-17 | C84: Mon | D84: 2 | E84: 1 | G84: 129 | H84: 258 | I84: NR | K84: 254 | L84: 0.5078740157 | M84: 0
A85: 2007-09-17 | B85: 2007-09-17 | C85: Mon | D85: 1 | E85: 1 | G85: 125 | H85: 125 | I85: NR | J85: Y | K85: 254 | L85: 0.4921259843 | M85: 0
A86: 2007-09-17 | B86: 2007-09-17 | C86: Mon | D86: 1 | E86: 1 | G86: 122 | H86: 122 | I86: NR | K86: 254 | L86: 0.4803149606 | M86: 0
A87: 2007-09-17 | B87: 2007-09-17 | C87: Mon | D87: 2 | E87: 1 | G87: 122 | H87: 244 | I87: NR | J87: Y | K87: 254 | L87: 0.4803149606 | M87: 0
A88: 2007-09-17 | B88: 2007-09-17 | C88: Mon | D88: 1 | E88: 1 | G88: 116 | H88: 116 | I88: NR | K88: 254 | L88: 0.4566929134 | M88: 0
A89: 2007-09-17 | B89: 2007-09-17 | C89: Mon | D89: 1 | E89: 1 | G89: 112 | H89: 112 | I89: NR | K89: 254 | L89: 0.4409448819 | M89: 0
A90: 2007-09-17 | B90: 2007-09-17 | C90: Mon | D90: 2 | E90: 1 | G90: 112 | H90: 224 | I90: NR | K90: 254 | L90: 0.4409448819 | M90: 0
A91: 2007-09-17 | B91: 2007-09-17 | C91: Mon | D91: 1 | E91: 1 | G91: 112 | H91: 112 | I91: NR | K91: 254 | L91: 0.4409448819 | M91: 0
A92: 2007-09-17 | B92: 2007-09-17 | C92: Mon | D92: 1 | E92: 1 | G92: 107 | H92: 107 | I92: NR | K92: 254 | L92: 0.4212598425 | M92: 0
A93: 2007-09-17 | B93: 2007-09-17 | C93: Mon | D93: 1 | E93: 1 | G93: 107 | H93: 107 | I93: NR | K93: 254 | L93: 0.4212598425 | M93: 0
A94: 2007-09-17 | B94: 2007-09-17 | C94: Mon | D94: 1 | E94: 1 | G94: 103 | H94: 103 | I94: NR | K94: 254 | L94: 0.405511811 | M94: 0
A95: 2007-09-17 | B95: 2007-09-17 | C95: Mon | D95: 1 | E95: 1 | G95: 103 | H95: 103 | I95: NR | K95: 254 | L95: 0.405511811 | M95: 0
A96: 2007-09-17 | B96: 2007-09-17 | C96: Mon | D96: 1 | E96: 1 | G96: 96 | H96: 96 | I96: NR | K96: 254 | L96: 0.3779527559 | M96: 0
A97: 2007-09-18 | B97: 2007-09-18 | C97: Tue | D97: 1 | E97: 1 | G97: 244 | H97: 244 | I97: NR | K97: 262.9 | L97: 0.9281095474 | M97: 0
A98: 2007-09-18 | B98: 2007-09-18 | C98: Tue | D98: 1 | E98: 1 | G98: 239 | H98: 239 | I98: NR | K98: 257.4 | L98: 0.9285159285 | M98: 0
A99: 2007-09-18 | B99: 2007-09-18 | C99: Tue | D99: 1 | E99: 1 | G99: 217 | H99: 217 | I99: NR | K99: 254 | L99: 0.8543307087 | M99: 0
A100: 2007-09-18 | B100: 2007-09-18 | C100: Tue | D100: 1 | E100: 1 | G100: 209 | H100: 209 | I100: NR | K100: 254 | L100: 0.8228346457 | M100: 0
A101: 2007-09-18 | B101: 2007-09-18 | C101: Tue | D101: 1 | E101: 1 | G101: 204 | H101: 204 | I101: NR | K101: 254 | L101: 0.8031496063 | M101: 0
A102: 2007-09-18 | B102: 2007-09-18 | C102: Tue | D102: 1 | E102: 2 | G102: 204 | H102: 204 | I102: NR | K102: 254 | L102: 0.8031496063 | M102: 0
A103: 2007-09-18 | B103: 2007-09-18 | C103: Tue | D103: 1 | E103: 1 | F103: 387 | G103: 195 | H103: 195 | I103: HI | K103: 387 | L103: 0.503875969 | M103: 0
A104: 2007-09-18 | B104: 2007-09-18 | C104: Tue | D104: 1 | E104: 1 | G104: 187 | H104: 187 | I104: NR | K104: 254 | L104: 0.7362204724 | M104: 0
A105: 2007-09-18 | B105: 2007-09-18 | C105: Tue | D105: 1 | E105: 1 | F105: 387 | G105: 187 | H105: 187 | I105: HI | K105: 387 | L105: 0.4832041344 | M105: 0
A106: 2007-09-18 | B106: 2007-09-18 | C106: Tue | D106: 1 | E106: 1 | G106: 173 | H106: 173 | I106: NR | K106: 254 | L106: 0.6811023622 | M106: 0
A107: 2007-09-18 | B107: 2007-09-18 | C107: Tue | D107: 1 | E107: 1 | G107: 165 | H107: 165 | I107: NR | K107: 254 | L107: 0.6496062992 | M107: 0
A108: 2007-09-18 | B108: 2007-09-18 | C108: Tue | D108: 2 | E108: 1 | F108: 363 | G108: 165 | H108: 330 | I108: HI | K108: 363 | L108: 0.4545454545 | M108: 0
A109: 2007-09-18 | B109: 2007-09-18 | C109: Tue | D109: 2 | E109: 1 | F109: 331 | G109: 165 | H109: 330 | I109: HI | K109: 331 | L109: 0.498489426 | M109: 0
A110: 2007-09-18 | B110: 2007-09-18 | C110: Tue | D110: 2 | E110: 1 | F110: 331 | G110: 156 | H110: 312 | I110: HI | K110: 331 | L110: 0.4712990937 | M110: 0
A111: 2007-09-18 | B111: 2007-09-18 | C111: Tue | D111: 2 | E111: 1 | F111: 331 | G111: 151 | H111: 302 | I111: HI | K111: 331 | L111: 0.4561933535 | M111: 0
A112: 2007-09-18 | B112: 2007-09-18 | C112: Tue | D112: 2 | E112: 1 | F112: 331 | G112: 143 | H112: 286 | I112: HI | K112: 331 | L112: 0.4320241692 | M112: 0
A113: 2007-09-18 | B113: 2007-09-18 | C113: Tue | D113: 1 | E113: 1 | G113: 134 | H113: 134 | I113: NR | K113: 254 | L113: 0.5275590551 | M113: 0
A114: 2007-09-18 | B114: 2007-09-18 | C114: Tue | D114: 2 | E114: 1 | F114: 331 | G114: 134 | H114: 268 | I114: HI | K114: 331 | L114: 0.4048338369 | M114: 0
A115: 2007-09-18 | B115: 2007-09-18 | C115: Tue | D115: 3 | E115: 1 | F115: 331 | G115: 129 | H115: 387 | I115: HI | K115: 331 | L115: 0.3897280967 | M115: 0
A116: 2007-09-18 | B116: 2007-09-18 | C116: Tue | D116: 1 | E116: 1 | F116: 387 | G116: 126 | H116: 126 | I116: HI | K116: 387 | L116: 0.3255813953 | M116: 0
A117: 2007-09-18 | B117: 2007-09-18 | C117: Tue | D117: 1 | E117: 1 | G117: 116 | H117: 116 | I117: NR | K117: 254 | L117: 0.4566929134 | M117: 0
A118: 2007-09-18 | B118: 2007-09-18 | C118: Tue | D118: 1 | E118: 1 | G118: 112 | H118: 112 | I118: NR | K118: 254 | L118: 0.4409448819 | M118: 0
A119: 2007-09-18 | B119: 2007-09-18 | C119: Tue | D119: 1 | E119: 1 | G119: 107 | H119: 107 | I119: NR | K119: 254 | L119: 0.4212598425 | M119: 0
A120: 2007-09-19 | B120: 2007-09-19 | C120: Wed | D120: 2 | E120: 1 | F120: 144 | G120: 128 | H120: 256 | I120: HI | J120: Y | K120: 254 | L120: 0.5039370079 | M120: 0
A121: 2007-09-19 | B121: 2007-09-19 | C121: Wed | D121: 1 | E121: 1 | F121: 308 | G121: 116 | H121: 116 | I121: HI | K121: 308 | L121: 0.3766233766 | M121: 0
A122: 2007-09-19 | B122: 2007-09-19 | C122: Wed | D122: 1 | E122: 1 | F122: 308 | G122: 107 | H122: 107 | I122: HI | K122: 308 | L122: 0.3474025974 | M122: 0
A123: 2007-09-19 | B123: 2007-09-19 | C123: Wed | D123: 1 | E123: 1 | F123: 308 | G123: 103 | H123: 103 | I123: HI | K123: 308 | L123: 0.3344155844 | M123: 0
A124: 2007-09-19 | B124: 2007-09-19 | C124: Wed | D124: 1 | E124: 1 | F124: 308 | G124: 103 | H124: 103 | I124: HI | K124: 308 | L124: 0.3344155844 | M124: 0
A125: 2007-09-20 | B125: 2007-09-20 | C125: Thu | D125: 1 | E125: 1 | F125: 134 | G125: 104 | H125: 104 | I125: HI | K125: 254 | L125: 0.4094488189 | M125: 0
A126: 2007-09-21 | B126: 2007-09-21 | C126: Fri | D126: 2 | E126: 1 | F126: 120 | G126: 98 | H126: 196 | I126: HI | J126: Y | K126: 254 | L126: 0.3858267717 | M126: 0
A127: 2007-09-21 | B127: 2007-09-21 | C127: Fri | D127: 2 | E127: 1 | F127: 120 | G127: 95 | H127: 190 | I127: HI | K127: 254 | L127: 0.374015748 | M127: 0
A128: 2007-09-22 | B128: 2007-09-22 | C128: Sat | D128: 1 | E128: 1 | F128: 134 | G128: 107 | H128: 107 | I128: HI | J128: Y | K128: 254 | L128: 0.4212598425 | M128: 0
A129: 2007-09-22 | B129: 2007-09-22 | C129: Sat | D129: 1 | E129: 1 | F129: 134 | G129: 103 | H129: 103 | I129: HI | J129: Y | K129: 254 | L129: 0.405511811 | M129: 0
A130: 2007-09-22 | B130: 2007-09-22 | C130: Sat | D130: 1 | E130: 1 | F130: 134 | G130: 99 | H130: 99 | I130: HI | J130: Y | K130: 254 | L130: 0.3897637795 | M130: =B130-A130 -> 0
A131: 2007-09-24 | B131: 2007-09-24 | C131: Mon | D131: 4 | E131: 2 | F131: 256 | G131: 182 | H131: 728 | I131: HI | J131: Y | K131: 256 | L131: =G131/K131 -> 0.7109375 | M131: 0
A132: 2007-09-24 | B132: 2007-09-24 | C132: Mon | D132: 3 | E132: 1 | F132: 280 | G132: 132 | H132: 396 | I132: HI | K132: 280 | L132: 0.4714285714 | M132: 0
A133: 2007-09-24 | B133: 2007-09-24 | C133: Mon | D133: 3 | E133: 1 | F133: 331 | G133: 121 | H133: 363 | I133: HI | K133: 331 | L133: 0.3655589124 | M133: 0
A134: 2007-09-24 | B134: 2007-09-24 | C134: Mon | D134: 2 | E134: 1 | F134: 194 | G134: 121 | H134: 242 | I134: HI | J134: Y | K134: 254 | L134: 0.4763779528 | M134: 0
A135: 2007-09-24 | B135: 2007-09-24 | C135: Mon | D135: 2 | E135: 1 | F135: 194 | G135: 121 | H135: 242 | I135: HI | J135: Y | K135: 254 | L135: 0.4763779528 | M135: 0
A136: 2007-09-24 | B136: 2007-09-24 | C136: Mon | D136: 1 | E136: 1 | F136: 134 | G136: 112 | H136: 112 | I136: HI | J136: Y | K136: 254 | L136: 0.4409448819 | M136: 0
A137: 2007-09-25 | B137: 2007-09-25 | C137: Tue | D137: 1 | E137: 1 | F137: 363 | G137: 143 | H137: 143 | I137: HI | K137: 363 | L137: 0.3939393939 | M137: 0
A138: 2007-09-25 | B138: 2007-09-25 | C138: Tue | D138: 3 | E138: 1 | G138: 121 | H138: 363 | I138: NR | K138: 254 | L138: 0.4763779528 | M138: 0
A139: 2007-09-25 | B139: 2007-09-25 | C139: Tue | D139: 2 | E139: 1 | G139: 121 | H139: 242 | I139: NR | K139: 254 | L139: 0.4763779528 | M139: 0
A140: 2007-09-25 | B140: 2007-09-25 | C140: Tue | D140: 1 | E140: 1 | F140: 363 | G140: 112 | H140: 112 | I140: HI | K140: 363 | L140: 0.3085399449 | M140: 0
A141: 2007-09-25 | B141: 2007-09-25 | C141: Tue | D141: 1 | E141: 1 | F141: 363 | G141: 112 | H141: 112 | I141: HI | K141: 363 | L141: 0.3085399449 | M141: 0
A142: 2007-09-25 | B142: 2007-09-25 | C142: Tue | D142: 2 | E142: 1 | G142: 107 | H142: 214 | I142: NR | K142: 254 | L142: 0.4212598425 | M142: 0
A143: 2007-09-25 | B143: 2007-09-25 | C143: Tue | D143: 2 | E143: 1 | G143: 107 | H143: 214 | I143: NR | K143: 254 | L143: 0.4212598425 | M143: 0
A144: 2007-09-25 | B144: 2007-09-25 | C144: Tue | D144: 2 | E144: 1 | G144: 103 | H144: 206 | I144: NR | J144: Y | K144: 254 | L144: 0.405511811 | M144: 0
A145: 2007-09-25 | B145: 2007-09-25 | C145: Tue | D145: 1 | E145: 1 | F145: 363 | G145: 100 | H145: 100 | I145: HI | K145: 363 | L145: 0.2754820937 | M145: 0
A146: 2007-09-25 | B146: 2007-09-25 | C146: Tue | D146: 1 | E146: 1 | F146: 363 | G146: 100 | H146: 100 | I146: HI | K146: 363 | L146: 0.2754820937 | M146: 0
A147: 2007-09-25 | B147: 2007-09-25 | C147: Tue | D147: 1 | E147: 1 | F147: 284 | G147: 99 | H147: 99 | I147: HI | K147: 284 | L147: 0.3485915493 | M147: 0
A148: 2007-09-25 | B148: 2007-09-25 | C148: Tue | D148: 1 | E148: 1 | F148: 284 | G148: 99 | H148: 99 | I148: HI | K148: 284 | L148: 0.3485915493 | M148: 0
A149: 2007-09-28 | B149: 2007-09-28 | C149: Fri | D149: 2 | E149: 1 | F149: 387 | G149: 116 | H149: 232 | I149: HI | J149: Y | K149: 387 | L149: 0.2997416021 | M149: 0
A150: 2007-09-28 | B150: 2007-09-28 | C150: Fri | D150: 1 | E150: 1 | F150: 363 | G150: 104 | H150: 104 | I150: HI | J150: Y | K150: 363 | L150: 0.2865013774 | M150: 0
A151: 2007-09-28 | B151: 2007-09-28 | C151: Fri | D151: 1 | E151: 1 | F151: 363 | G151: 103 | H151: 103 | I151: HI | K151: 363 | L151: 0.2837465565 | M151: 0
A152: 2007-09-26 | B152: 2007-09-26 | C152: Wed | D152: 1 | E152: 1 | G152: 212 | H152: 212 | I152: NR | K152: 254 | L152: 0.8346456693 | M152: 0
A153: 2007-09-26 | B153: 2007-09-26 | C153: Wed | D153: 1 | E153: 1 | F153: 256 | G153: 187 | H153: 187 | I153: HI | K153: 256 | L153: 0.73046875 | M153: 0
A154: 2007-09-26 | B154: 2007-09-26 | C154: Wed | D154: 1 | E154: 1 | F154: 269 | G154: 169 | H154: 169 | I154: HI | K154: 269 | L154: 0.6282527881 | M154: 0
A155: 2007-09-26 | B155: 2007-09-26 | C155: Wed | D155: 1 | E155: 1 | F155: 244 | G155: 162 | H155: 162 | I155: HI | J155: Y | K155: 254 | L155: 0.6377952756 | M155: 0
A156: 2007-09-26 | B156: 2007-09-26 | C156: Wed | D156: 1 | E156: 1 | G156: 160 | H156: 160 | I156: NR | K156: 254 | L156: 0.6299212598 | M156: 0
A157: 2007-09-26 | B157: 2007-09-26 | C157: Wed | D157: 1 | E157: 1 | F157: 256 | G157: 160 | H157: 160 | I157: HI | K157: 256 | L157: 0.625 | M157: 0
A158: 2007-09-26 | B158: 2007-09-26 | C158: Wed | D158: 1 | E158: 1 | F158: 254 | G158: 156 | H158: 156 | I158: HI | K158: 254 | L158: 0.6141732283 | M158: 0
A159: 2007-09-26 | B159: 2007-09-26 | C159: Wed | D159: 1 | E159: 1 | G159: 143 | H159: 143 | I159: NR | K159: 254 | L159: 0.562992126 | M159: 0
A160: 2007-09-26 | B160: 2007-09-26 | C160: Wed | D160: 1 | E160: 1 | F160: 244 | G160: 143 | H160: 143 | I160: HI | K160: 254 | L160: 0.562992126 | M160: 0
A161: 2007-09-26 | B161: 2007-09-26 | C161: Wed | D161: 1 | E161: 1 | F161: 254 | G161: 138 | H161: 138 | I161: HI | K161: 254 | L161: 0.5433070866 | M161: 0
A162: 2007-09-26 | B162: 2007-09-26 | C162: Wed | D162: 1 | E162: 1 | F162: 308 | G162: 129 | H162: 129 | I162: HI | K162: 308 | L162: 0.4188311688 | M162: 0
A163: 2007-09-26 | B163: 2007-09-26 | C163: Wed | D163: 1 | E163: 1 | F163: 244 | G163: 125 | H163: 125 | I163: HI | K163: 254 | L163: 0.4921259843 | M163: 0
A164: 2007-09-26 | B164: 2007-09-26 | C164: Wed | D164: 1 | E164: 1 | G164: 125 | H164: 125 | I164: NR | K164: 254 | L164: 0.4921259843 | M164: 0
A165: 2007-09-26 | B165: 2007-09-26 | C165: Wed | D165: 1 | E165: 1 | F165: 244 | G165: 125 | H165: 125 | I165: HI | K165: 254 | L165: 0.4921259843 | M165: 0
A166: 2007-09-26 | B166: 2007-09-26 | C166: Wed | D166: 1 | E166: 1 | F166: 256 | G166: 121 | H166: 121 | I166: HI | K166: 256 | L166: 0.47265625 | M166: 0
A167: 2007-09-26 | B167: 2007-09-26 | C167: Wed | D167: 1 | E167: 1 | F167: 308 | G167: 121 | H167: 121 | I167: HI | K167: 308 | L167: 0.3928571429 | M167: 0
A168: 2007-09-26 | B168: 2007-09-26 | C168: Wed | D168: 2 | E168: 1 | G168: 120 | H168: 240 | I168: NR | K168: 254 | L168: 0.4724409449 | M168: 0
A169: 2007-09-26 | B169: 2007-09-26 | C169: Wed | D169: 2 | E169: 1 | F169: 254 | G169: 112 | H169: 224 | I169: HI | K169: 254 | L169: 0.4409448819 | M169: 0
A170: 2007-09-26 | B170: 2007-09-26 | C170: Wed | D170: 2 | E170: 1 | F170: 254 | G170: 112 | H170: 224 | I170: HI | K170: 254 | L170: 0.4409448819 | M170: 0
A171: 2007-09-26 | B171: 2007-09-26 | C171: Wed | D171: 1 | E171: 1 | F171: 363 | G171: 112 | H171: 112 | I171: HI | J171: Y | K171: 363 | L171: 0.3085399449 | M171: 0
A172: 2007-09-26 | B172: 2007-09-26 | C172: Wed | D172: 3 | E172: 1 | F172: 214 | G172: 112 | H172: 336 | I172: HI | K172: 254 | L172: 0.4409448819 | M172: 0
A173: 2007-09-26 | B173: 2007-09-26 | C173: Wed | D173: 1 | E173: 1 | F173: 256 | G173: 112 | H173: 112 | I173: HI | K173: 256 | L173: 0.4375 | M173: 0
A174: 2007-09-26 | B174: 2007-09-26 | C174: Wed | D174: 1 | E174: 1 | F174: 244 | G174: 112 | H174: 112 | I174: HI | K174: 254 | L174: 0.4409448819 | M174: 0
A175: 2007-09-26 | B175: 2007-09-26 | C175: Wed | D175: 1 | E175: 1 | F175: 244 | G175: 107 | H175: 107 | I175: HI | K175: 254 | L175: 0.4212598425 | M175: 0
A176: 2007-09-26 | B176: 2007-09-26 | C176: Wed | D176: 1 | E176: 1 | G176: 107 | H176: 107 | I176: NR | K176: 254 | L176: 0.4212598425 | M176: 0
A177: 2007-09-27 | B177: 2007-09-27 | C177: Thu | D177: 1 | E177: 1 | F177: 254 | G177: 143 | H177: 143 | I177: HI | K177: 254 | L177: 0.562992126 | M177: 0
A178: 2007-09-27 | B178: 2007-09-27 | C178: Thu | D178: 1 | E178: 1 | F178: 254 | G178: 143 | H178: 143 | I178: HI | K178: 254 | L178: 0.562992126 | M178: 0
A179: 2007-09-27 | B179: 2007-09-27 | C179: Thu | D179: 1 | E179: 1 | F179: 254 | G179: 143 | H179: 143 | I179: HI | J179: Y | K179: 254 | L179: 0.562992126 | M179: 0
A180: 2007-09-27 | B180: 2007-09-27 | C180: Thu | D180: 1 | E180: 1 | F180: 254 | G180: 134 | H180: 134 | I180: HI | K180: 254 | L180: 0.5275590551 | M180: 0
A181: 2007-09-27 | B181: 2007-09-27 | C181: Thu | D181: 1 | E181: 1 | F181: 143 | G181: 127 | H181: 127 | I181: HI | J181: Y | K181: 254 | L181: 0.5 | M181: 0
A182: 2007-09-27 | B182: 2007-09-27 | C182: Thu | D182: 1 | E182: 1 | F182: 143 | G182: 121 | H182: 121 | I182: HI | J182: Y | K182: 254 | L182: 0.4763779528 | M182: 0
A183: 2007-09-27 | B183: 2007-09-27 | C183: Thu | D183: 1 | E183: 1 | F183: 254 | G183: 116 | H183: 116 | I183: HI | K183: 254 | L183: 0.4566929134 | M183: 0
A184: 2007-09-27 | B184: 2007-09-27 | C184: Thu | D184: 1 | E184: 1 | F184: 143 | G184: 103 | H184: 103 | I184: HI | K184: 254 | L184: 0.405511811 | M184: 0
A185: 2007-09-28 | B185: 2007-09-28 | C185: Fri | D185: 1 | E185: 1 | F185: 134 | G185: 127 | H185: 127 | I185: HI | J185: Y | K185: 254 | L185: 0.5 | M185: 0
A186: 2007-09-28 | B186: 2007-09-28 | C186: Fri | D186: 2 | E186: 1 | F186: 134 | G186: 104 | H186: 208 | I186: HI | K186: 254 | L186: 0.4094488189 | M186: 0
A187: 2007-09-28 | B187: 2007-09-28 | C187: Fri | D187: 2 | E187: 1 | F187: 134 | G187: 99 | H187: 198 | I187: HI | K187: 254 | L187: 0.3897637795 | M187: 0
A188: 2007-09-29 | B188: 2007-09-29 | C188: Sat | D188: 1 | E188: 1 | G188: 107 | H188: 107 | I188: NR | J188: Y | K188: 254 | L188: 0.4212598425 | M188: 0
A189: 2007-09-29 | B189: 2007-09-29 | C189: Sat | D189: 1 | E189: 1 | G189: 98 | H189: 98 | I189: NR | J189: Y | K189: 254 | L189: 0.3858267717 | M189: 0
A190: 2007-08-31 | B190: 2007-09-01 | C190: Sat | D190: 1 | E190: 1 | F190: 150 | G190: 103 | H190: 103 | I190: HI | J190: Y | K190: 254 | L190: 0.405511811 | M190: 1
A191: 2007-08-31 | B191: 2007-09-01 | C191: Sat | D191: 2 | E191: 1 | F191: 157 | G191: 99 | H191: 198 | I191: HI | J191: Y | K191: 254 | L191: 0.3897637795 | M191: 1
A192: 2007-08-31 | B192: 2007-09-01 | C192: Sat | D192: 1 | E192: 1 | F192: 120 | G192: 99 | H192: 99 | I192: HI | J192: Y | K192: 254 | L192: 0.3897637795 | M192: 1
A193: 2007-08-31 | B193: 2007-09-01 | C193: Sat | D193: 1 | E193: 1 | F193: 150 | G193: 99 | H193: 99 | I193: HI | J193: Y | K193: 254 | L193: 0.3897637795 | M193: 1
A194: 2007-08-31 | B194: 2007-09-01 | C194: Sat | D194: 1 | E194: 1 | F194: 150 | G194: 95 | H194: 95 | I194: HI | K194: 254 | L194: 0.374015748 | M194: =B194-A194 -> 1
A195: 2007-09-01 | B195: 2007-09-02 | C195: Sun | D195: 1 | E195: 1 | F195: 117 | G195: 99 | H195: 99 | I195: HI | K195: 254 | L195: =G195/K195 -> 0.3897637795 | M195: 1
A196: 2007-09-04 | B196: 2007-09-05 | C196: Wed | D196: 3 | E196: 1 | F196: 308 | G196: 109 | H196: 327 | I196: HI | K196: 308 | L196: 0.3538961039 | M196: 1
A197: 2007-09-04 | B197: 2007-09-05 | C197: Wed | D197: 3 | E197: 1 | F197: 250 | G197: 104 | H197: 312 | I197: HI | J197: Y | K197: 254 | L197: 0.4094488189 | M197: 1
A198: 2007-09-05 | B198: 2007-09-06 | C198: Thu | D198: 7 | E198: 1 | F198: 284 | G198: 112 | H198: 784 | I198: HI | K198: 284 | L198: 0.3943661972 | M198: 1
A199: 2007-09-05 | B199: 2007-09-06 | C199: Thu | D199: 2 | E199: 1 | F199: 120 | G199: 109 | H199: 218 | I199: HI | K199: 254 | L199: 0.4291338583 | M199: 1
A200: 2007-09-05 | B200: 2007-09-06 | C200: Thu | D200: 3 | E200: 1 | F200: 120 | G200: 106 | H200: 318 | I200: HI | K200: 254 | L200: 0.4173228346 | M200: 1
... 1374 more rows

Sheet Data Summary
A1: Check in Day of Week | B1: Fri
A3: Count of Offer Price | B3: DBA
A4: Check in Date | B4: 0 | C4: 1 | D4: 2 | E4: 3 | F4: 4 | G4: 5 | H4: 6 | I4: 7 | J4: 8 | K4: 9 | L4: 10 | M4: 11 | N4: 12 | O4: 13 | P4: 14
A5: 2007-08-31 | B5: 1
A6: 2007-09-07 | B6: 11 | D6: 4 | E6: 3 | F6: 1
A7: 2007-09-14 | B7: 4 | C7: 3 | D7: 1 | E7: 2 | F7: 2 | G7: 3 | H7: 4 | I7: 1 | K7: 1 | L7: 3 | M7: 1 | N7: 1 | O7: 1
A8: 2007-09-21 | B8: 2 | C8: 8 | D8: 4 | E8: 3 | F8: 4 | G8: 1 | J8: 1 | N8: 1 | P8: 3
A9: 2007-09-28 | B9: 6 | C9: 5 | D9: 3 | F9: 2 | H9: 2 | I9: 3 | J9: 2 | L9: 2 | N9: 1 | O9: 1
A10: 2007-10-05 | H10: 1 | I10: 1 | J10: 4 | K10: 1 | M10: 3 | O10: 3
A11: 2007-10-12 | O11: 1 | P11: 2
A12: Grand Total | B12: 24 | C12: 16 | D12: 12 | E12: 8 | F12: 9 | G12: 4 | H12: 7 | I12: 5 | J12: 7 | K12: 2 | L12: 5 | M12: 4 | N12: 3 | O12: 6 | P12: 5

Sheet Model
A2: ARRIVAL PARAMETERS
C3: DBA
C4: 0 | D4: 1 | E4: 2 | F4: 3 | G4: 4 | H4: 5 | I4: 6 | J4: 7 | K4: 8 | L4: 9 | M4: 10 | N4: 11 | O4: 12 | P4: 13 | Q4: 14
A5: #Observations | C5: =COUNT('Data Summary'!B5:B1000)-1 -> 5 | D5: =COUNT('Data Summary'!C5:C1000)-1 -> 3 | E5: =COUNT('Data Summary'!D5:D1000)-1 -> 4 | F5: =COUNT('Data Summary'!E5:E1000)-1 -> 3 | G5: =COUNT('Data Summary'!F5:F1000)-1 -> 4 | H5: =COUNT('Data Summary'!G5:G1000)-1 -> 2 | I5: =COUNT('Data Summary'!H5:H1000)-1 -> 3 | J5: =COUNT('Data Summary'!I5:I1000)-1 -> 3 | K5: =COUNT('Data Summary'!J5:J1000)-1 -> 3 | L5: =COUNT('Data Summary'!K5:K1000)-1 -> 2 | M5: =COUNT('Data Summary'!L5:L1000)-1 -> 2 | N5: =COUNT('Data Summary'!M5:M1000)-1 -> 2 | O5: =COUNT('Data Summary'!N5:N1000)-1 -> 3 | P5: =COUNT('Data Summary'!O5:O1000)-1 -> 4 | Q5: =COUNT('Data Summary'!P5:P1000)-1 -> 2
A6: # Requests | C6: =MAX('Data Summary'!B5:B10000) -> 24 | D6: =MAX('Data Summary'!C5:C10000) -> 16 | E6: =MAX('Data Summary'!D5:D10000) -> 12 | F6: =MAX('Data Summary'!E5:E10000) -> 8 | G6: =MAX('Data Summary'!F5:F10000) -> 9 | H6: =MAX('Data Summary'!G5:G10000) -> 4 | I6: =MAX('Data Summary'!H5:H10000) -> 7 | J6: =MAX('Data Summary'!I5:I10000) -> 5 | K6: =MAX('Data Summary'!J5:J10000) -> 7 | L6: =MAX('Data Summary'!K5:K10000) -> 2 | M6: =MAX('Data Summary'!L5:L10000) -> 5 | N6: =MAX('Data Summary'!M5:M10000) -> 4 | O6: =MAX('Data Summary'!N5:N10000) -> 3 | P6: =MAX('Data Summary'!O5:O10000) -> 6 | Q6: =MAX('Data Summary'!P5:P10000) -> 5
A8: DISCOUNT DISTRIBUTION PARAMETERS
A9: Min | B9: =MIN(Data!L:L) -> 0.2384428224
A10: Max | B10: =MAX(Data!L:L) -> 0.9285159285
N11: ALPHA | P11: =B24*(B24*(1-B24)/B25-1) -> 6.418772159
B12: =B9 -> 0.2384428224 | C12: =FREQUENCY(Data!L:L,Model!B12:B22) -> 1 | D12: =EXP(GAMMALN(alpha+beta))/EXP(GAMMALN(alpha))/EXP(GAMMALN(beta))*(B12/2)^(alpha-1)*(1-B12)^(beta-1) -> 0.01203979681 | N12: BETA | P12: =(1-B24)*(B24*(1-B24)/B25-1) -> 6.501868349
B13: =B12+($B$10-$B$9)/10 -> 0.307450133 | C13: 46 | D13: =EXP(GAMMALN(alpha+beta))/EXP(GAMMALN(alpha))/EXP(GAMMALN(beta))*((B12+B13)/2)^(alpha-1)*(1-B13)^(beta-1) -> 0.6352099349
B14: =B13+($B$10-$B$9)/10 -> 0.3764574436 | C14: 107 | D14: 1.209366916
B15: 0.4454647542 | C15: 536 | D15: 1.717545124
B16: 0.5144720648 | C16: 340 | D16: 1.917159031
B17: 0.5834793755 | C17: 244 | D17: 1.70800887
B18: 0.6524866861 | C18: 115 | D18: 1.197669692
B19: 0.7214939967 | C19: 55 | D19: 0.6288218672
B20: 0.7905013073 | C20: 56 | D20: 0.2205266734
B21: 0.8595086179 | C21: 28 | D21: 0.03928982467
B22: 0.9285159285 | C22: 44 | D22: 0.001475210136
A24: Mean | B24: =AVERAGE(Data!L:L) -> 0.4967843626
A25: Variance | B25: =VAR(Data!L:L) -> 0.01795820096
B28: NUMBER OF ROOMS TO RELAEASE ON PRICELINE
B29: 10
B31: MAXIMUM DBAs TO START PRICING ON PRICELINE
B32: 14
G34: OPTIMAL DISCOUNTS
C36: DBA
B37: ROOMS | C37: 0 | D37: 1 | E37: 2 | F37: 3 | G37: 4 | H37: 5 | I37: 6 | J37: 7 | K37: 8 | L37: 9 | M37: 10 | N37: 11 | O37: 12 | P37: 13 | Q37: 14
B38: 1 | C38: 0.52 | D38: 0.61 | E38: 0.64 | F38: 0.64 | G38: 0.63 | H38: 0.61 | I38: 0.59 | J38: 0.59 | K38: 0.57 | L38: 0.57 | M38: 0.53 | N38: 0.57 | O38: 0.55 | P38: 0.51 | Q38: 0.55
B39: 2 | C39: 0.48 | D39: 0.57 | E39: 0.6 | F39: 0.6 | G39: 0.59 | H39: 0.58 | I39: 0.55 | J39: 0.55 | K39: 0.53 | L39: 0.53 | M39: 0.5 | N39: 0.53 | O39: 0.51 | P39: 0.48 | Q39: 0.51
B40: 3 | C40: 0.45 | D40: 0.54 | E40: 0.57 | F40: 0.57 | G40: 0.56 | H40: 0.55 | I40: 0.53 | J40: 0.52 | K40: 0.51 | L40: 0.51 | M40: 0.47 | N40: 0.5 | O40: 0.49 | P40: 0.46 | Q40: 0.48
B41: 4 | C41: 0.42 | D41: 0.51 | E41: 0.54 | F41: 0.55 | G41: 0.54 | H41: 0.53 | I41: 0.51 | J41: 0.5 | K41: 0.49 | L41: 0.49 | M41: 0.46 | N41: 0.47 | O41: 0.47 | P41: 0.44 | Q41: 0.46
B42: 5 | C42: 0.41 | D42: 0.49 | E42: 0.51 | F42: 0.53 | G42: 0.52 | H42: 0.52 | I42: 0.5 | J42: 0.49 | K42: 0.48 | L42: 0.47 | M42: 0.44 | N42: 0.46 | O42: 0.45 | P42: 0.43 | Q42: 0.44
B43: 6 | C43: 0.4 | D43: 0.46 | E43: 0.49 | F43: 0.51 | G43: 0.51 | H43: 0.5 | I43: 0.49 | J43: 0.48 | K43: 0.46 | L43: 0.46 | M43: 0.43 | N43: 0.44 | O43: 0.44 | P43: 0.42 | Q43: 0.43
B44: 7 | C44: 0.39 | D44: 0.44 | E44: 0.47 | F44: 0.49 | G44: 0.49 | H44: 0.49 | I44: 0.48 | J44: 0.47 | K44: 0.46 | L44: 0.45 | M44: 0.43 | N44: 0.43 | O44: 0.43 | P44: 0.41 | Q44: 0.42
B45: 8 | C45: 0.38 | D45: 0.43 | E45: 0.46 | F45: 0.47 | G45: 0.48 | H45: 0.48 | I45: 0.47 | J45: 0.46 | K45: 0.45 | L45: 0.44 | M45: 0.42 | N45: 0.43 | O45: 0.42 | P45: 0.41 | Q45: 0.41
B46: 9 | C46: 0.38 | D46: 0.41 | E46: 0.44 | F46: 0.46 | G46: 0.47 | H46: 0.47 | I46: 0.46 | J46: 0.45 | K46: 0.44 | L46: 0.44 | M46: 0.42 | N46: 0.42 | O46: 0.42 | P46: 0.41 | Q46: 0.41
B47: 10 | C47: 0.38 | D47: 0.4 | E47: 0.43 | F47: 0.45 | G47: 0.46 | H47: 0.46 | I47: 0.45 | J47: 0.45 | K47: 0.44 | L47: 0.43 | M47: 0.41 | N47: 0.42 | O47: 0.41 | P47: 0.4 | Q47: 0.4
